[Event "Commonwealth CC-Open 2024"]
[Site "Malacca"]
[Date "2024.02.25"]
[Round "7.17"]
[White "Masli, Muhd Nur Daie"]
[Black "Chitlange Sakshi"]
[Result "0-1"]
[ECO "C11"]
[WhiteElo "1867"]
[BlackElo "2210"]
[Annotator "RC"]
[PlyCount "134"]
[EventDate "2024.02.21"]
[EventCountry "MAS"]
[SourceTitle "playchess.com"]
[Source "ChessBase"]
[SourceQuality "1"]
[TimeControl "5400+30"]

1. e4 e6 2. Nf3 d5 3. Nc3 Nf6 4. e5 Nfd7 5. d4 c5 6. dxc5 Bxc5 7. Bd3 Nc6 8. Bf4 Be7 9. h3 a6 10. O-O O-O 11. Re1 f6 12. exf6 Bxf6 13. Bg3 Nc5 14. Qd2 b5 15. a3 Ra7 16. Rab1 Raf7 17. b4 Nxd3 18. Qxd3 Qb6 19. a4 Bxc3 20. Qxc3 bxa4 21. Qc5 Qb5 22. c3 h6 23. Ra1 Bd7 24. Ra2 Rc8 25. Qe3 a5 26. bxa5 Nxa5 27. Ne5 Nc4 28. Nxc4 Qxc4 29. Ra3 Qb5 30. Be5 Qc5 31. Qxc5 Rxc5 32. h4 h5 33. Ra2 Kh7 34. Rb2 Rb5 35. Ra2 Rb3 36. Bd4 Rf8 37. Re5 g6 38. Re3 Rf4 39. g3 Rf7 40. Kg2 Kg8 41. Re5 Rf5 42. f3 Rxe5 43. Bxe5 Kf7 44. g4 Ke7 45. Kg3 Be8 46. Kf4 Rb1 47. gxh5 gxh5 48. Kg5 Rf1 49. Kf4 Rh1 50. Kg3 Rb1 51. Kf4 Kd8 52. Kg5 Rg1+ 53. Kf4 Rh1 54. Kg5 Rh3 55. Rf2 Ke7 56. Rf1 a3 57. Ra1 Rxf3 58. Bd4 Rg3+ 59. Kh6 Rg6+ 60. Kh7 Rg4 61. Rxa3 Rxh4 62. Kh6 Rh1 63. Kg5 Kd6 64. Ra6+ Bc6 65. Kf4 Rf1+ 66. Kg5 Rf5+ 67. Kh4 {[%emt 1:57:01]} e5 {[%emt 2:04:00]} 0-1

[Event "Commonwealth CC-Open 2024"]
[Site "Malacca"]
[Date "2024.02.25"]
[Round "7.18"]
[White "Kapoor, Satvik"]
[Black "Chan, Peng Kong"]
[Result "1/2-1/2"]
[ECO "D34"]
[WhiteElo "1791"]
[BlackElo "2125"]
[Annotator "NA RC"]
[PlyCount "62"]
[EventDate "2024.02.21"]
[EventCountry "MAS"]
[SourceTitle "playchess.com"]
[Source "ChessBase"]
[SourceQuality "1"]
[TimeControl "5400+30"]

1. Nf3 Nf6 2. d4 e6 3. g3 d5 4. Bg2 c5 5. O-O Nc6 6. c4 Be7 7. cxd5 exd5 8. Nc3 O-O 9. dxc5 Bxc5 10. Bg5 Be7 11. Bxf6 Bxf6 12. Qxd5 Qxd5 13. Nxd5 Bxb2 14. Rab1 Ba3 {[%emt 0:10:54]} 15. Nd2 {[%emt 0:09:16]} Bg4 {[%emt 0:18:50]} 16. Rxb7 {[%emt 0:16:16]} Bxe2 {[%emt 0:19:10]} 17. Re1 {[%emt 0:16:18]} Ba6 {[%emt 0:21:46]} (17... Nd4 $11) 18. Rc7 {[%emt 0:35:23]} (18. Rb3 $1 $14 Bd6 19. Rc3) 18... Rac8 $11 {[%emt 0:25:44]} 19. Re3 Bd6 20. Rxc8 Rxc8 21. Ne4 Bf8 22. Rc3 Nb4 23. Rxc8 Bxc8 24. Nec3 Be6 25. Kf1 Nxd5 26. Bxd5 Bxd5 27. Nxd5 Bc5 28. Ke2 f5 29. f3 Kf7 30. Kd3 Bg1 31. h3 {[%emt 1:08:27]} Ke6 {[%emt 1:06:28]} 1/2-1/2

[Event "Commonwealth CC-Open 2024"]
[Site "Malacca"]
[Date "2024.02.25"]
[Round "7.19"]
[White "Smith, Robert W"]
[Black "Chong, Jin Cheng"]
[Result "0-1"]
[ECO "B06"]
[WhiteElo "2152"]
[BlackElo "1706"]
[Annotator "ChessBase"]
[PlyCount "84"]
[EventDate "2024.02.21"]
[EventCountry "MAS"]
[SourceTitle "playchess.com"]
[Source "ChessBase"]
[SourceQuality "1"]
[TimeControl "5400+30"]

1. e4 c5 2. c3 d5 3. exd5 Qxd5 4. d4 g6 5. Nf3 Bg7 6. Na3 cxd4 7. Bc4 Qe4+ 8. Be3 Nh6 9. Nb5 O-O 10. cxd4 Nc6 11. O-O Nf5 12. Re1 Nxe3 13. Rxe3 Qf4 14. g3 Qf6 15. Ne5 a6 16. Nc7 Ra7 17. Nd5 Qd6 18. Nxc6 bxc6 19. Nb6 Bxd4 20. Nxc8 Rxc8 21. Rf3 e6 22. Qe2 c5 23. Rd1 Kg7 24. b3 e5 25. g4 Re8 26. Rh3 e4 27. Qd2 Bxf2+ 28. Kxf2 e3+ 29. Rxe3 Qxh2+ 30. Ke1 Qg1+ 31. Ke2 Qxg4+ 32. Ke1 Qh4+ 33. Ke2 Rxe3+ 34. Kxe3 Qg3+ 35. Ke2 Qg2+ 36. Kd3 Rd7+ 37. Kc3 Rxd2 38. Rxd2 Qf3+ 39. Kb2 h5 40. Bd5 Qf4 41. Kc2 h4 42. Rd3 {[%emt 1:51:30]} f5 {[%emt 1:39:58]} 0-1

[Event "Commonwealth CC-Open 2024"]
[Site "Malacca"]
[Date "2024.02.25"]
[Round "7.20"]
[White "Yeo, Klaus Lucas"]
[Black "Bhagyashree Patil"]
[Result "0-1"]
[ECO "C28"]
[WhiteElo "1549"]
[BlackElo "1885"]
[Annotator "NA"]
[PlyCount "106"]
[EventDate "2024.02.21"]
[EventCountry "MAS"]
[SourceTitle "playchess.com"]
[Source "ChessBase"]
[SourceQuality "1"]
[TimeControl "5400+30"]

1. e4 e5 2. Nc3 Nf6 3. Bc4 Nc6 4. d3 Bc5 5. f4 exf4 6. Bxf4 d6 7. Nf3 a6 8. d4 {[%emt 0:06:33]} Bb6 {[%emt 0:12:10]} 9. Qd2 {[%emt 0:18:18]} Bg4 {[%emt 0:14:51]} 10. Be3 {[%emt 0:21:36]} Qe7 {[%emt 0:20:13]} (10... Nxe4 $11 11. Nxe4 d5) 11. Bd5 $11 {[%emt 0:36:37]} (11. O-O $14) 11... Nxd5 12. Nxd5 Qxe4 13. Nxb6 cxb6 14. O-O O-O 15. d5 Ne7 16. Bxb6 Qxd5 17. Rad1 Qc6 18. Qxd6 Qxd6 19. Rxd6 Bxf3 20. Rxf3 Nc8 21. Rfd3 Nxd6 22. Rxd6 Rac8 23. Rd2 Rfe8 24. a4 Re6 25. a5 Rce8 26. Kf2 h6 27. c4 Rf6+ 28. Kg3 Re5 29. h3 Rg6+ 30. Kf4 Rge6 31. b3 Re2 32. Rxe2 Rxe2 33. b4 Rxg2 34. Ke5 Rd2 35. Bd4 f5 36. Be3 Rd3 37. Bc5 Kf7 38. Kxf5 Rxh3 39. Ke5 Rd3 40. Ke4 Rd1 41. Ke5 h5 42. Kf5 Rc1 43. Ke5 Rxc4 44. Kd6 h4 45. Kc7 h3 46. Kxb7 h2 47. Kxa6 h1=Q 48. Kb5 Rxc5+ 49. Kxc5 Qa8 50. Kb6 Qb8+ 51. Kc5 Qc7+ 52. Kb5 Qb7+ 53. Kc5 {[%emt 1:55:40]} Qa6 {[%emt 1:43:15]} 0-1

[Event "Commonwealth CC-Open 2024"]
[Site "Malacca"]
[Date "2024.02.25"]
[Round "7.21"]
[White "Kavin Mohan"]
[Black "Lim, Xiao Xian Tobias"]
[Result "1-0"]
[ECO "D36"]
[WhiteElo "1803"]
[BlackElo "1584"]
[Annotator "NA"]
[PlyCount "90"]
[EventDate "2024.02.21"]
[EventCountry "MAS"]
[SourceTitle "playchess.com"]
[Source "ChessBase"]
[SourceQuality "1"]
[TimeControl "5400+30"]

1. d4 d5 2. c4 e6 3. Nc3 Nf6 4. cxd5 exd5 5. Bg5 c6 6. Qc2 h6 7. Bh4 Be7 8. e3 O-O 9. Bd3 Ne8 10. Bxe7 Qxe7 11. Nge2 Nd6 12. O-O a5 {[%emt 0:11:27]} 13. Na4 {[%emt 0:13:51]} Na6 {[%emt 0:20:43]} 14. a3 {[%emt 0:14:49]} Re8 {[%emt 0:36:52]} 15. Nf4 {[%emt 0:20:14]} Bd7 {[%emt 0:42:38]} 16. Nb6 {[%emt 0:21:42]} Ra7 {[%emt 0:42:59]} 17. Qc3 $14 {[%emt 0:22:50]} Nc7 18. Qc5 Nc8 19. Na4 Qd8 20. Qc2 b5 21. Nc5 Nd6 22. Rfc1 Bc8 23. a4 b4 24. Nb3 Bd7 25. Qc5 Nc8 26. Nxa5 Na6 27. Bxa6 Rxa6 28. Nb3 Rb6 29. Nd3 Qg5 30. Qc2 Bf5 31. a5 Rb8 32. Qd2 Nd6 33. e4 Qxd2 34. Nxd2 dxe4 35. Ne5 Nb5 36. Nxc6 Ra8 37. Rc5 Bd7 38. Ne5 Nxd4 39. Nxd7 Red8 40. Nb6 Ra7 41. Kf1 Ne6 42. Rc8 Rxc8 43. Nxc8 Nc5 44. Nd6 Re7 45. a6 {[%emt 0:55:46]} Ra7 {[%emt 1:52:57]} 1-0

[Event "Commonwealth CC-Open 2024"]
[Site "Malacca"]
[Date "2024.02.25"]
[Round "7.22"]
[White "Gomes, Mary Ann"]
[Black "Hiew, Jing Yung"]
[Result "1/2-1/2"]
[ECO "A09"]
[WhiteElo "2332"]
[BlackElo "1635"]
[Annotator "RC"]
[PlyCount "50"]
[EventDate "2024.02.21"]
[EventCountry "MAS"]
[SourceTitle "playchess.com"]
[Source "ChessBase"]
[SourceQuality "1"]
[TimeControl "5400+30"]

1. Nf3 d5 2. g3 g6 3. c4 dxc4 4. Na3 Nc6 5. Nxc4 Bg7 6. Bg2 e5 7. O-O e4 8. Ne1 Be6 9. Qa4 Nf6 10. Na5 Qd4 11. Qb5 Qb6 12. Qxb6 axb6 13. Nxc6 bxc6 14. d3 Bd5 15. Bg5 O-O 16. Bxf6 Bxf6 17. dxe4 Bc4 18. e5 Bxe5 19. Nd3 Bxd3 20. exd3 Bxb2 21. Bxc6 Bxa1 22. Bxa8 Rxa8 23. Rxa1 Ra3 24. Rc1 Rxd3 25. Rxc7 {[%emt 0:41:43]} Ra3 {[%emt 1:09:37]} 1/2-1/2

[Event "Commonwealth CC-Open 2024"]
[Site "Malacca"]
[Date "2024.02.25"]
[Round "7.24"]
[White "Khandhar, Kaushal"]
[Black "De Maupeou D`ableiges, Alexandre"]
[Result "1-0"]
[ECO "D25"]
[WhiteElo "1840"]
[BlackElo "1609"]
[Annotator "NA RC"]
[PlyCount "111"]
[EventDate "2024.02.21"]
[EventCountry "MAS"]
[SourceTitle "playchess.com"]
[Source "ChessBase"]
[SourceQuality "1"]
[TimeControl "5400+30"]

1. d4 d5 2. Nf3 Nf6 3. c4 dxc4 4. e3 a6 5. Bxc4 b5 6. Be2 Bb7 7. O-O e6 8. a4 b4 9. a5 {[%emt 0:09:50]} Bd6 {[%emt 0:09:10]} 10. Nbd2 {[%emt 0:13:13]} O-O {[%emt 0:21:46]} 11. Nc4 {[%emt 0:15:50]} Be7 {[%emt 0:22:08]} 12. Qb3 {[%emt 0:22:09]} c5 $14 {[%emt 0:36:09]} (12... Nbd7 $11 {was preferrable.}) 13. Rd1 Qc7 14. Bd2 Bd5 15. Rdc1 Qb7 16. Qd1 cxd4 17. Nb6 Ra7 18. Nxd5 Qxd5 19. Nxd4 g6 20. Bf3 Qd6 21. Nc6 Nxc6 22. Rxc6 Qe5 23. Qc2 Rd8 24. Be1 Kg7 25. Qb3 Qb5 26. Rb6 Rd3 27. Qc2 Qd7 28. Be2 Rd5 29. Bc4 Rh5 30. g3 Bc5 31. Rxb4 Bxb4 32. Bxb4 Nd5 33. Be1 Nc7 34. Bc3+ e5 35. f4 Nb5 36. Bxb5 Qxb5 37. fxe5 Kh6 38. Qe4 Qe2 39. Qf4+ Kg7 40. e6+ Kf8 41. Qb8+ Ke7 42. Qxa7+ Kxe6 43. Qb6+ Kd7 44. Qb7+ Ke6 45. Qc6+ Kf5 46. Qf6+ Ke4 47. Qd4+ Kf5 48. Rf1+ Qxf1+ 49. Kxf1 Ke6 50. g4 Rb5 51. Qf6+ Kd5 52. Qxa6 Rc5 53. Qb7+ Kc4 54. a6 h5 55. Qb4+ Kd5 {[%emt 1:52:45]} 56. a7 {[%emt 1:50:45]} 1-0

[Event "Commonwealth CC-Open 2024"]
[Site "Malacca"]
[Date "2024.02.25"]
[Round "7.25"]
[White "Milligan, Helen"]
[Black "Ismadi, Muhd Eilfie"]
[Result "1-0"]
[ECO "C54"]
[WhiteElo "1941"]
[BlackElo "1500"]
[Annotator "NA RC"]
[PlyCount "123"]
[EventDate "2024.02.21"]
[EventCountry "MAS"]
[SourceTitle "playchess.com"]
[Source "ChessBase"]
[SourceQuality "1"]
[TimeControl "5400+30"]

1. e4 e5 2. Nf3 Nc6 3. Bc4 Bc5 4. c3 Nf6 5. d3 a5 6. O-O d6 7. Nbd2 O-O 8. h3 h6 9. Re1 Bb6 10. Nf1 Ne7 11. Bb3 {[%emt 0:19:34]} g5 {[%emt 0:06:28]} 12. d4 {[%emt 0:22:16]} Ng6 {[%emt 0:06:54]} 13. Ng3 {[%emt 0:24:29]} Be6 {[%emt 0:11:50]} 14. Nf5 {[%emt 0:30:34]} Kh7 {[%emt 0:14:12]} 15. Bc2 {[%emt 0:37:11]} (15. Bxg5 hxg5 (15... Bxb3 16. Qd2 $16) 16. Nxg5+ Kh8) 15... Ng8 $2 {[%emt 0:18:41]} (15... Rh8 $16) 16. Nxg5+ {[%emt 0:41:14]} Kh8 {[%emt 0:19:28]} 17. Qh5 {[%emt 0:44:26]} Bxf5 {[%emt 0:20:50]} 18. exf5 $18 {[%emt 0:44:49]} Qf6 19. Ne4 Qh4 20. Qxh4 Nxh4 21. dxe5 Nxf5 22. exd6 cxd6 23. Bf4 d5 24. Ng3 Nxg3 25. Bxg3 Rfe8 26. Bb3 Red8 27. Rad1 Rd7 28. Rxd5 Rad8 29. Rxd7 Rxd7 30. Re2 Kg7 31. Be5+ f6 32. Bf4 Ne7 33. Rd2 Rxd2 34. Bxd2 Bc7 35. Kf1 h5 36. Ke2 Kg6 37. Bc2+ f5 38. g4 hxg4 39. hxg4 Kf7 40. Bxf5 Nxf5 41. gxf5 Kf6 42. Kd3 Kxf5 43. c4 b6 44. Be3 Ke5 45. Bd4+ Kf4 46. b3 Bd8 47. a3 Kf5 48. b4 axb4 49. axb4 Bc7 50. b5 Kf4 51. c5 bxc5 52. Bxc5 Ke5 53. Kc4 Bb8 54. Be3 Ke6 55. Kc5 Kd7 56. b6 Bd6+ 57. Kd5 Bb8 58. Bd4 Kc8 59. Be5 Bxe5 60. Kxe5 Kb7 61. f4 Kxb6 {[%emt 1:24:00]} 62. Kd6 {[%emt 1:36:13]} 1-0

[Event "Commonwealth CC-Open 2024"]
[Site "Malacca"]
[Date "2024.02.26"]
[Round "8.1"]
[White "Rohith Krishna S"]
[Black "Tin, Jingyao"]
[Result "1-0"]
[ECO "D31"]
[WhiteElo "2410"]
[BlackElo "2563"]
[Annotator "RC"]
[PlyCount "85"]
[EventDate "2024.02.21"]
[EventCountry "MAS"]
[SourceTitle "playchess.com"]
[Source "ChessBase"]
[SourceQuality "1"]
[TimeControl "5400+30"]

1. d4 d5 2. c4 e6 3. Nc3 a6 4. Nf3 dxc4 5. a4 Nc6 6. e3 Na5 7. Nd2 Nf6 8. Nxc4 c5 9. Be2 Nxc4 10. Bxc4 cxd4 11. exd4 Bd6 12. Bg5 h6 13. Bh4 O-O 14. O-O Be7 15. Qd3 Re8 16. Rfe1 Bd7 17. Bb3 Nh7 18. Bg3 Qb6 19. Bc2 Nf8 20. a5 Qb4 21. d5 Rac8 22. Be5 Ng6 23. Bxg7 Bg5 24. Bd4 e5 25. Rxe5 Rxe5 26. Bxe5 Qxb2 27. Rb1 Qa3 28. g3 Bh3 29. Bd4 Qxa5 30. Rxb7 Qa3 31. Rb1 a5 32. Qf3 Re8 33. Bxg6 fxg6 34. g4 Qb4 35. Qd3 Kh7 36. Ne4 Qe7 37. Nxg5+ Qxg5 38. Qxh3 Re4 39. Rb7+ Kg8 40. Rg7+ Kf8 41. Qa3+ Ke8 42. Rg8+ Kd7 {[%emt 1:44:10]} 43. Qa4+ {[%emt 1:39:51]} 1-0

[Event "Commonwealth CC-Open 2024"]
[Site "Malacca"]
[Date "2024.02.26"]
[Round "8.2"]
[White "Vignesh N R"]
[Black "Lalit Babu M R"]
[Result "1-0"]
[ECO "C83"]
[WhiteElo "2517"]
[BlackElo "2525"]
[Annotator "ChessBase"]
[PlyCount "63"]
[EventDate "2024.02.21"]
[EventCountry "MAS"]
[SourceTitle "playchess.com"]
[Source "ChessBase"]
[SourceQuality "1"]
[TimeControl "5400+30"]

1. e4 e5 2. Nf3 Nc6 3. Bb5 a6 4. Ba4 Nf6 5. O-O Nxe4 6. d4 b5 7. Bb3 d5 8. dxe5 Be6 9. c3 Be7 10. Nbd2 Nc5 11. Bc2 d4 12. Nb3 d3 13. Bb1 Nxb3 14. axb3 Bf5 15. Re1 O-O 16. Bf4 Qd7 17. b4 Rfd8 18. h3 a5 19. g4 Bg6 20. bxa5 Rxa5 21. Ba2 Rf8 22. b4 Ra4 23. e6 Qd8 24. exf7+ Bxf7 25. Bxf7+ Rxf7 26. Qb3 Kf8 27. Rxa4 Rxf4 28. Qe6 Rf6 29. Ng5 Ke8 30. Qg8+ Kd7 31. Qd5+ Ke8 {[%emt 1:39:27]} 32. Qxb5 {[%emt 1:22:12]} 1-0

[Event "Commonwealth CC-Open 2024"]
[Site "Malacca"]
[Date "2024.02.26"]
[Round "8.3"]
[White "Vaibhav, Suri"]
[Black "Mitrabha, Guha"]
[Result "0-1"]
[ECO "B12"]
[WhiteElo "2596"]
[BlackElo "2504"]
[Annotator "RC"]
[PlyCount "128"]
[EventDate "2024.02.21"]
[EventCountry "MAS"]
[SourceTitle "playchess.com"]
[Source "ChessBase"]
[SourceQuality "1"]
[TimeControl "5400+30"]

1. e4 c6 2. d4 d5 3. e5 Bf5 4. h4 h6 5. Bd3 Bxd3 6. Qxd3 e6 7. Nf3 Ne7 8. c3 Nd7 9. b4 a5 10. b5 cxb5 11. Qxb5 Qb6 12. Na3 Nc6 13. Rb1 Bxa3 14. Bxa3 Qxb5 15. Rxb5 b6 16. Ke2 f6 17. exf6 gxf6 18. h5 Kf7 19. Rc1 Rac8 20. Kd3 Na7 21. Rbb1 Rc6 22. Nd2 Rg8 23. g3 Rg5 24. Rh1 e5 25. Nf1 f5 26. dxe5 Nxe5+ 27. Ke2 Rg4 28. Rh4 Rxh4 29. gxh4 Rxc3 30. Bc1 Rc2+ 31. Nd2 b5 32. a3 Nac6 33. Kd1 Rc5 34. f4 Nd3 35. Nb3 Rc4 36. Bd2 Ra4 37. Kc2 Nf2 38. Kb2 Ne4 39. Rc1 Nxd2 40. Nxd2 Ne7 41. Rf1 Nc8 42. Rc1 Nd6 43. Rc7+ Ke8 44. Rc5 Rxf4 45. Rxd5 Ke7 46. Nb3 Rf2+ 47. Kc1 Nc4 48. Rc5 Rf3 49. Kc2 Nxa3+ 50. Kb2 Nc4+ 51. Ka2 Rf2+ 52. Ka1 a4 53. Nd4 Nd6 54. Nxb5 Nxb5 55. Rxb5 f4 56. Rb7+ Ke6 57. Rb6+ Ke5 58. Rb5+ Ke4 59. Rb4+ Kf5 60. Rb6 Rh2 61. Rxh6 f3 62. Rh8 f2 63. Rf8+ Kg4 64. h6 {[%emt 1:57:55]} Rh1+ {[%emt 1:03:33]} 0-1

[Event "Commonwealth CC-Open 2024"]
[Site "Malacca"]
[Date "2024.02.26"]
[Round "8.4"]
[White "Das, Sayantan"]
[Black "Iniyan, Pa"]
[Result "1/2-1/2"]
[ECO "B51"]
[WhiteElo "2514"]
[BlackElo "2515"]
[Annotator "RC"]
[PlyCount "144"]
[EventDate "2024.02.21"]
[EventCountry "MAS"]
[SourceTitle "playchess.com"]
[Source "ChessBase"]
[SourceQuality "1"]
[TimeControl "5400+30"]

1. e4 c5 2. Nf3 d6 3. Bb5+ Nd7 4. c4 a6 5. Ba4 Ngf6 6. O-O g6 7. Nc3 Bg7 8. d3 O-O 9. h3 Ne8 10. d4 Nc7 11. Be3 Ne6 12. Nd5 Rb8 13. Bxd7 Bxd7 14. dxc5 dxc5 15. Qd2 Re8 16. Bh6 Nd4 17. Nxd4 Bxd4 18. Qf4 Bc6 19. Rab1 b5 20. b3 Rb7 21. Rbd1 Qb8 22. Qh4 Qe5 23. Rfe1 Qe6 24. Be3 Bxe3 25. Rxe3 Qe5 26. f4 Qb2 27. f5 Qe5 28. Qf2 e6 29. Ree1 exd5 30. exd5 Qxf5 31. dxc6 Rxe1+ 32. Qxe1 Rc7 33. Rd5 Qf6 34. cxb5 axb5 35. Rxc5 Qd4+ 36. Qf2 Qd1+ 37. Kh2 Qd6+ 38. Qg3 Qxc5 39. Qxc7 b4 40. h4 h5 41. Qf4 Qxc6 42. Qxb4 Qc7+ 43. Kh3 Qd7+ 44. Kg3 Qd3+ 45. Kh2 Qe3 46. Qb8+ Kg7 47. a4 Qd4 48. Qg3 Qb4 49. Kh3 Kh7 50. Qf3 Kg7 51. g3 f6 52. Qd5 Qg4+ 53. Kh2 Qe2+ 54. Qg2 Qe1 55. Qb7+ Kh6 56. Qf3 Kg7 57. Kg2 Qd2+ 58. Kf1 Qc1+ 59. Kf2 Qc2+ 60. Kg1 Qc1+ 61. Kh2 Qc2+ 62. Kh3 Qc8+ 63. Kh2 Qc2+ 64. Kh3 Qc8+ 65. g4 hxg4+ 66. Qxg4 Qc3+ 67. Qg3 Qc8+ 68. Kh2 Qc2+ 69. Kg1 Qd1+ 70. Kf2 Qc2+ 71. Kf1 Qd1+ 72. Kg2 {[%emt 2:04:01]} Qc2+ {[%emt 1:58:33]} 1/2-1/2

[Event "Commonwealth CC-Open 2024"]
[Site "Malacca"]
[Date "2024.02.26"]
[Round "8.5"]
[White "Laxman, R.R."]
[Black "Sethuraman, S.P."]
[Result "1-0"]
[ECO "D30"]
[WhiteElo "2338"]
[BlackElo "2594"]
[Annotator "RC"]
[PlyCount "119"]
[EventDate "2024.02.21"]
[EventCountry "MAS"]
[SourceTitle "playchess.com"]
[Source "ChessBase"]
[SourceQuality "1"]
[TimeControl "5400+30"]

1. d4 {[%emt 0:00:11]} Nf6 {[%emt 0:00:15]} 2. Nf3 {[%emt 0:00:05]} d5 {[%emt 0:00:19]} 3. c4 {[%emt 0:00:12]} e6 {[%emt 0:00:06]} 4. e3 {[%emt 0:00:05]} a6 {[%emt 0:02:54]} 5. Nbd2 {[%emt 0:00:19]} b6 {[%emt 0:07:08]} 6. cxd5 {[%emt 0:01:04]} exd5 {[%emt 0:00:07]} 7. Bd3 {[%emt 0:00:03]} Bb7 {[%emt 0:00:05]} 8. Qc2 {[%emt 0:02:33]} Bd6 {[%emt 0:05:52]} 9. O-O {[%emt 0:00:27]} O-O {[%emt 0:00:05]} 10. e4 {[%emt 0:01:24]} dxe4 {[%emt 0:00:05]} 11. Nxe4 {[%emt 0:00:03]} Nxe4 {[%emt 0:00:16]} 12. Bxe4 {[%emt 0:00:02]} Bxe4 {[%emt 0:00:06]} 13. Qxe4 {[%emt 0:00:02]} Nd7 {[%emt 0:00:05]} 14. Bg5 {[%emt 0:02:11]} Qe8 {[%emt 0:07:27]} 15. Qc6 {[%emt 0:13:13]} Qe6 {[%emt 0:06:07]} 16. Rac1 {[%emt 0:01:00]} Nc5 {[%emt 0:01:47]} 17. d5 {[%emt 0:05:45]} Qe2 {[%emt 0:15:51]} 18. Rce1 {[%emt 0:06:36]} Qxb2 {[%emt 0:09:20]} 19. Be7 {[%emt 0:00:21]} Qxa2 {[%emt 0:00:40]} 20. Bxd6 {[%emt 0:02:55]} cxd6 {[%emt 0:00:43]} 21. Qxd6 {[%emt 0:00:15]} Na4 {[%emt 0:12:49]} 22. Ne5 {[%emt 0:13:37]} Nc3 {[%emt 0:12:57]} 23. Nd7 {[%emt 0:06:10]} Rfd8 {[%emt 0:02:19]} 24. Nf6+ {[%emt 0:00:08]} gxf6 {[%emt 0:02:05]} 25. Qg3+ {[%emt 0:00:06]} Kh8 {[%emt 0:00:42]} 26. Qxc3 {[%emt 0:00:02]} Rd6 {[%emt 0:00:20]} 27. Rd1 {[%emt 0:00:19]} Rad8 {[%emt 0:03:57]} 28. Qc7 {[%emt 0:04:57]} Kg7 {[%emt 0:05:31]} 29. Rd3 {[%emt 0:00:10]} Qa5 {[%emt 0:01:30]} 30. Qe7 {[%emt 0:04:19]} Qb5 {[%emt 0:00:08]} 31. Rfd1 {[%emt 0:04:22]} Qe8 {[%emt 0:01:33]} 32. Qc7 {[%emt 0:01:21]} Qd7 {[%emt 0:02:10]} 33. Qc4 {[%emt 0:00:26]} b5 {[%emt 0:00:30]} 34. Qf4 {[%emt 0:00:11]} f5 {[%emt 0:00:47]} 35. h4 {[%emt 0:00:32]} Rg6 {[%emt 0:00:34]} 36. Qe5+ {[%emt 0:00:28]} f6 {[%emt 0:00:22]} 37. Qf4 {[%emt 0:01:27]} Rg4 {[%emt 0:00:03]} 38. Rg3 {[%emt 0:00:05]} h5 {[%emt 0:00:59]} 39. f3 {[%emt 0:00:35]} Qa7+ {[%emt 0:00:36]} 40. Kh2 {[%emt 0:00:08]} Rxg3 {[%emt 0:00:24]} 41. Qxg3+ {[%emt 0:00:28]} Kf7 {[%emt 0:00:20]} 42. Rc1 {[%emt 0:00:25]} Qe7 {[%emt 0:00:20]} 43. f4 {[%emt 0:02:51]} Rxd5 {[%emt 0:00:58]} 44. Qf3 {[%emt 0:00:01]} Qd6 {[%emt 0:00:30]} 45. Qxh5+ {[%emt 0:00:06]} Kg7 {[%emt 0:00:09]} 46. Rf1 {[%emt 0:00:19]} Qd7 {[%emt 0:00:43]} 47. Re1 {[%emt 0:01:25]} Qf7 {[%emt 0:00:37]} 48. Qf3 {[%emt 0:00:05]} b4 {[%emt 0:00:30]} 49. Re3 {[%emt 0:00:43]} Kh6 {[%emt 0:00:26]} 50. Qe2 {[%emt 0:00:11]} Qc7 {[%emt 0:00:36]} 51. Rf3 {[%emt 0:01:15]} a5 {[%emt 0:00:32]} 52. Qe6 {[%emt 0:01:30]} Rd6 {[%emt 0:00:13]} 53. Qxf5 {[%emt 0:00:03]} a4 {[%emt 0:00:28]} 54. Rg3 {[%emt 0:00:45]} Qf7 {[%emt 0:00:18]} 55. Qc5 {[%emt 0:00:10]} Ra6 {[%emt 0:00:52]} 56. Qc8 {[%emt 0:02:30]} Re6 {[%emt 0:00:27]} 57. Qh8+ {[%emt 0:01:04]} Qh7 {[%emt 0:00:01]} 58. Qf8+ {[%emt 0:00:07]} Kh5 {[%emt 0:00:15]} 59. Rg7 {[%emt 0:00:44]} Qh6 {[%emt 0:00:17]} 60. Qf7+ {[%emt 0:00:06]} 1-0

[Event "Commonwealth CC-Open 2024"]
[Site "Malacca"]
[Date "2024.02.26"]
[Round "8.6"]
[White "Visakh N R"]
[Black "Wong, Zhenyong Jayden"]
[Result "1-0"]
[ECO "B40"]
[WhiteElo "2549"]
[BlackElo "2406"]
[Annotator "RC"]
[PlyCount "49"]
[EventDate "2024.02.21"]
[EventCountry "MAS"]
[SourceTitle "playchess.com"]
[Source "ChessBase"]
[SourceQuality "1"]
[TimeControl "5400+30"]

1. e4 c5 2. Nf3 e6 3. b3 b6 4. Bd3 Bb7 5. O-O Be7 6. Bb2 Nf6 7. e5 Nd5 8. Be4 Qc7 9. Re1 O-O 10. c4 Nf4 11. d4 cxd4 12. Qxd4 Ng6 13. Bxb7 Qxb7 14. Nc3 Nc6 15. Qd2 f6 16. exf6 Bxf6 17. Rad1 Rad8 18. Ne4 Bxb2 19. Qxb2 Qc7 20. Nd6 a6 21. Qd2 Rxf3 22. gxf3 Rf8 23. Re3 Nh4 24. Qc3 Rf4 {[%emt 1:18:40]} 25. Ne8 {[%emt 1:21:02]} 1-0

[Event "Commonwealth CC-Open 2024"]
[Site "Malacca"]
[Date "2024.02.26"]
[Round "8.8"]
[White "Deepan Chakkravarthy J."]
[Black "Gong, Qianyun"]
[Result "1-0"]
[ECO "D02"]
[WhiteElo "2422"]
[BlackElo "2263"]
[Annotator "RC"]
[PlyCount "93"]
[EventDate "2024.02.21"]
[EventCountry "MAS"]
[SourceTitle "playchess.com"]
[Source "ChessBase"]
[SourceQuality "1"]
[TimeControl "5400+30"]

1. Nf3 d5 2. d4 Nf6 3. c3 e6 4. Bf4 Bd6 5. Bg3 O-O 6. Nbd2 c5 7. e3 Qc7 8. Bd3 Nbd7 9. Qc2 e5 10. dxe5 Nxe5 11. Nxe5 Bxe5 12. Nf3 Bxg3 13. hxg3 h6 14. Bf5 b5 15. a4 a6 16. O-O Bb7 17. b4 Ne4 18. Rfc1 bxa4 19. Qxa4 Nd6 20. Bg4 Bc8 21. Bxc8 Rfxc8 22. Qd1 cxb4 23. cxb4 Qb7 24. Ne5 Nc4 25. Nd3 Rd8 26. Qe1 Qe7 27. Nf4 Qe5 28. Ra2 g5 29. Nd3 Qf5 30. Nc5 Ne5 31. Rd1 Qg6 32. Qc3 Qh5 33. f3 g4 34. f4 Nc4 35. Raa1 Nd6 36. Qd3 Nf5 37. Kf2 d4 38. e4 Ne3 39. Rh1 Qg6 40. Nxa6 Qf6 41. b5 Rac8 42. Rac1 Kg7 43. Nb4 Rc3 44. Rxc3 dxc3 45. Qxe3 Rd2+ 46. Kg1 Rb2 {[%emt 1:52:29]} 47. Nd5 {[%emt 1:50:29]} 1-0

[Event "Commonwealth CC-Open 2024"]
[Site "Malacca"]
[Date "2024.02.26"]
[Round "8.10"]
[White "Bhagyashree Patil"]
[Black "Nandhidhaa, P V"]
[Result "0-1"]
[ECO "A43"]
[WhiteElo "1885"]
[BlackElo "2305"]
[Annotator "RC"]
[PlyCount "90"]
[EventDate "2024.02.21"]
[EventCountry "MAS"]
[SourceTitle "playchess.com"]
[Source "ChessBase"]
[SourceQuality "1"]
[TimeControl "5400+30"]

1. d4 c5 2. d5 Nf6 3. Bf4 d6 4. Nc3 Na6 5. Nf3 Nc7 6. e4 g6 7. Bd3 Bg7 8. O-O O-O 9. Nd2 e6 10. dxe6 Nxe6 11. Be3 d5 12. exd5 Nxd5 13. Nxd5 Qxd5 14. Be4 Qd6 15. Nc4 Qa6 16. Bd3 b5 17. Na3 Bd7 18. c3 Rad8 19. Qe2 c4 20. Be4 Bc6 21. Bxc6 Qxc6 22. Nc2 Rfe8 23. Rad1 Nf4 24. Bxf4 Rxe2 25. Rxd8+ Re8 26. Rfd1 h6 27. g3 Rxd8 28. Rxd8+ Kh7 29. Rd2 Qe4 30. h4 a5 31. a3 Bf6 32. Be3 g5 33. hxg5 hxg5 34. Nd4 Qb7 35. Nc2 Be7 36. Bd4 Kg6 37. Re2 Bd6 38. Re3 Qd5 39. Ne1 b4 40. axb4 axb4 41. Nf3 b3 42. Ne5+ Bxe5 43. Rxe5 Qf3 44. Bc5 Qd1+ 45. Kg2 {[%emt 1:45:23]} f6 {[%emt 1:42:09]} 0-1

[Event "Commonwealth CC-Open 2024"]
[Site "Malacca"]
[Date "2024.02.26"]
[Round "8.11"]
[White "Srija, Seshadri"]
[Black "Novak, Attila Robert"]
[Result "1-0"]
[ECO "C02"]
[WhiteElo "2291"]
[BlackElo "2130"]
[Annotator "RC"]
[PlyCount "61"]
[EventDate "2024.02.21"]
[EventCountry "MAS"]
[SourceTitle "playchess.com"]
[Source "ChessBase"]
[SourceQuality "1"]
[TimeControl "5400+30"]

1. e4 e6 2. d4 d5 3. e5 c5 4. c3 Nc6 5. Nf3 Bd7 6. Be2 f6 7. O-O Qc7 8. Re1 fxe5 9. dxe5 O-O-O 10. Bf1 h6 11. a4 g5 12. Na3 a6 13. h3 Bg7 14. Qe2 Nge7 15. b4 c4 16. b5 Na5 17. Rb1 axb5 18. Nxb5 Bxb5 19. Rxb5 Nb3 20. Be3 Rdf8 21. Nd4 Nxd4 22. Bxd4 Nc6 23. Reb1 Rf7 24. a5 Bf8 25. Qa2 Nxd4 26. cxd4 Rhh7 27. a6 Qb8 28. axb7+ Rxb7 29. Qa6 Rhd7 30. Rxb7 Rxb7 {[%emt 1:35:31]} 31. Qc6+ {[%emt 0:59:52]} 1-0